Workbook

Sheet Standard
A1: IntegraSpec® STANDARD Mitering Wall Formula
A2: MITERING IntegraSpec® WITH STANDARD PANELS WITH | G2: =+H36 -> 10 | H2: INCH CONCRETE CAVITY FOR
A3: =+H35 -> 45 | B3: DEGREE CORNERS / ANGLE(S)
A4: DESCRIPTION
A6: LH = Long Heel (1st part of panel "A")
A7: SP = Short Point (2nd part of panel "A")
A8: SH = Short Heel (1st part of panel "B")
A9: LP = Long Point (2nd part of panel "B")
A12: 1st Panel cuts = SP + LH = Panel "A"
A13: 2nd Panels cuts = LP + SH = Panel "B"
A19: MITERING FORMULA EXAMPLE FOR 6" CONCRETE WALL:
A21: d = TAN (Degree/2) X 11" (overall wall width) | E21: SP = d/2 - 1/8" + 16"
E22: SH = SP - d
E23: LP = SP + 16"
E24: LH = LP - d
A25: 45 Degree CORNER MITER CUT EXAMPLE
E27: Cutting Angle = 22.5 Degree
A29: d = TAN 22.5º X 11" = 4.56 | E29: SP = 4.56/2 - 0.125 + 16" = 18.153" | I29: = | J29: =CEILING(18.153,0.03125) -> 18.15625 | K29: "
E30: SH = 18.153" - 4.56 = 13.59" | I30: = | J30: =CEILING(13.5968,0.03125) -> 13.625 | K30: "
E31: LP = 18.153" + 16" = 34.15" | I31: = | J31: =CEILING(34.15,0.03125) -> 34.15625 | K31: "
E32: LH = 34.15" - 4.56 = 29.59" | I32: = | J32: =CEILING(29.5968,0.03125) -> 29.625 | K32: "
A34: (Excel Spreadsheet application)
A35: ENTER DEGREE OF ANGLE / CORNER BLOCK DESIRED IN BOX | H35: 45 | I35: Degree (angle)
F36: ENTER CONCRETE CORE / CAVITY SIZE IN BOX | H36: 10 | I36: Inch (concrete cavity)
G37: (Panel "A") SP = | H37: =B39/2 - 0.125+16 -> 18.98160172 | I37: " = | J37: =CEILING(H37,0.03125) -> 19 | K37: "
B38: =H36+5 -> 15 | D38: =H35/2 -> 22.5 | E38: =RADIANS(D38) -> 0.3926990817 | G38: (Panel "B") SH = | H38: =H37-B39 -> 12.76839828 | I38: " = | J38: =CEILING(H38,0.03125) -> 12.78125 | K38: "
A39: =TAN(E38) -> 0.4142135624 | B39: =A39*B38 -> 6.213203436 | D39: =J39 -> 35 | G39: (Panel "B") LP = | H39: =H37+16 -> 34.98160172 | I39: " = | J39: =CEILING(H39,0.03125) -> 35 | K39: "
A40: =J37 -> 19 | G40: (Panel "A") LH = | H40: =H39-B39 -> 28.76839828 | I40: " = | J40: =CEILING(H40,0.03125) -> 28.78125 | K40: "
F42: CUTTING PROCEDURES:
G44: Set Miter Saw @ | H44: =D38 -> 22.5 | I44: Degree
D46: =J40 -> 28.78125 | F46: 1st Panel: Cut at measurement intersection of
F47: SP with your saw set at cutting angle shown
F48: above. Piece remaining = LH.
F50: 2nd Panel: Cut at measurement intersection of
F51: LP with your saw set at cutting angle shown
C52: =J38 -> 12.78125 | F52: above. Piece remaining = SH.
J54: Copyright IntegraSpec Corp. - Appendix "D"

Sheet Metric (hidden)
A1: IntegraSpec® METRIC Mitering Wall Formula
A2: MITERING IntegraSpec® WITH STANDARD PANELS WITH | G2: =+H36 -> 152 | H2: mm CONCRETE CAVITY FOR
A3: =+H35 -> 45 | B3: DEGREE CORNERS / ANGLE(S)
A4: DESCRIPTION
A6: LH = Long Heel (1st part of panel "A")
A7: SP = Short Point (2nd part of panel "A")
A8: SH = Short Heel (1st part of panel "B")
A9: LP = Long Point (2nd part of panel "B")
A12: 1st Panel cuts = SP + LH = Panel "A"
A13: 2nd Panels cuts = LP + SH = Panel "B"
A19: MITERING FORMULA EXAMPLE FOR 152 mm CONCRETE WALL:
A21: d = TAN (Degree/2) X 280 mm (overall wall width) | E21: SP = d/2 - 3 mm + 406 mm
E22: SH = SP - d
E23: LP = SP + 406 mm
E24: LH = LP - d
A25: 45 Degree CORNER MITER CUT EXAMPLE
E27: Cutting Angle = 22.5 Degree
A29: d = TAN 22.5º X 280 mm = 116 | E29: SP = 116/2 - 3 + 406 = 461 mm | I29: = | J29: 461 | K29: mm
E30: SH = 461 mm - 116 = 345 mm | I30: = | J30: 345 | K30: mm
E31: LP = 461 mm + 406 mm = 867 mm | I31: = | J31: 867 | K31: mm
E32: LH = 867 mm - 116 = 751 mm | I32: = | J32: 751 | K32: mm
A34: (Excel Spreadsheet application)
A35: ENTER DEGREE OF ANGLE / CORNER BLOCK DESIRED IN BOX | H35: 45 | I35: Degree (angle)
F36: ENTER CONCRETE CORE / CAVITY SIZE IN BOX | H36: 152 | I36: mm (concrete cavity)
G37: (Panel "A") SP = | H37: =B39/2 -3+406 -> 460.782792 | I37: = | J37: =ROUND(H37,0) -> 461 | K37: mm
B38: =H36+127 -> 279 | D38: =H35/2 -> 22.5 | E38: =RADIANS(D38) -> 0.3926990817 | G38: (Panel "B") SH = | H38: =H37-B39 -> 345.217208 | I38: = | J38: =ROUND(H38,0) -> 345 | K38: mm
A39: =TAN(E38) -> 0.4142135624 | B39: =A39*B38 -> 115.5655839 | D39: =J39 -> 867 | G39: (Panel "B") LP = | H39: =H37+406 -> 866.782792 | I39: = | J39: =ROUND(H39,0) -> 867 | K39: mm
A40: =J37 -> 461 | G40: (Panel "A") LH = | H40: =H39-B39 -> 751.217208 | I40: = | J40: =ROUND(H40,0) -> 751 | K40: mm
F42: CUTTING PROCEDURES:
G44: Set Miter Saw @ | H44: =D38 -> 22.5 | I44: Degree
D46: =J40 -> 751 | F46: 1st Panel: Cut at measurement intersection of
F47: SP with your saw set at cutting angle shown
F48: above. Piece remaining = LH.
F50: 2nd Panel: Cut at measurement intersection of
F51: LP with your saw set at cutting angle shown
C52: =J38 -> 345 | F52: above. Piece remaining = SH.
J54: Copyright Phil-Insul Corporation (PIC) Updated Dec., 2006 - Appendix "D"
